bitfinex/quotes_BTCUSD_20251231
["timestamp","ask_amount","ask_price","bid_price","bid_amount"]
[1767158285481,0.0113062,88447.0,88434.0,0.14616]
[1767158285720,0.01130607,88448.0,88434.0,0.14616]
[1767158286732,0.0113062,88447.0,88434.0,0.14616]
[1767158287152,0.01130607,88448.0,88434.0,0.14616]
[1767158287947,0.0113062,88447.0,88434.0,0.14616]
[1767158288149,0.0113062,88447.0,88434.0,0.0002]
[1767158288150,0.01130684,88442.0,88434.0,0.0002]
[1767158288362,0.00035,88434.0,88431.0,0.01132]
[1767158288567,0.14923,88434.0,88431.0,0.01132]
[1767158288822,0.16053722,88439.0,88431.0,0.01127674]
[1767158289027,0.14923,88439.0,88431.0,0.01127674]
[1767158289224,0.01130735,88438.0,88431.0,0.01127674]
[1767158289482,0.14923,88439.0,88431.0,0.01127674]
[1767158290226,0.16053722,88439.0,88431.0,0.01127674]
[1767158290425,0.14923,88439.0,88431.0,0.01127674]
[1767158291745,0.16053722,88439.0,88431.0,0.01127674]
[1767158291948,0.14923,88439.0,88431.0,0.01127674]
[1767158292587,0.16053722,88439.0,88431.0,0.01127674]
[1767158292825,0.14923,88439.0,88431.0,0.01127674]
[1767158293000,0.16053722,88439.0,88431.0,0.01127674]
[1767158293211,0.14923,88436.0,88430.0,0.0001125]
[1767158293387,0.0001095,88430.0,88424.0,0.01132]
[1767158293596,0.16053799,88433.0,88424.0,0.01132]
[1767158293794,0.14923,88433.0,88424.0,0.01132]
[1767158296030,0.16053799,88433.0,88424.0,0.01132]
[1767158298119,0.01130812,88432.0,88424.0,0.01132]
[1767158298538,0.000347,88424.0,88423.0,0.0001125]
[1767158298719,0.01130927,88423.0,88411.0,0.01132]
[1767158299156,0.13766,88424.0,88411.0,0.01132]
[1767158299373,0.4150177,88426.0,88411.0,0.15052]
[1767158299566,0.4150177,88421.0,88411.0,0.15052]
[1767158299767,0.01130876,88427.0,88411.0,0.15052]
[1767158300062,0.01142126,88427.0,88411.0,0.15052]
[1767158301112,0.4150177,88421.0,88411.0,0.15052]
[1767158301266,0.4148157,88421.0,88411.0,0.15052]
[1767158305811,0.42612523,88421.0,88411.0,0.15052]
[1767158306011,0.4148157,88421.0,88411.0,0.15052]
[1767158309063,0.01130965,88420.0,88411.0,0.15052]
[1767158309270,0.48267335,88421.0,88411.0,0.01132]
[1767158309512,0.01131017,88416.0,88411.0,0.010771]
[1767158309718,0.01130991,88418.0,88405.0,0.1394]
[1767158309910,0.01130991,88418.0,88408.0,0.01132]
[1767158310294,0.01131004,88417.0,88408.0,0.01132]
[1767158311472,0.01131017,88416.0,88408.0,0.01132]
[1767158311675,0.14897068,88412.0,88408.0,0.01132]
[1767158311824,0.14897068,88412.0,88405.0,0.0002]
[1767158312384,0.13766,88412.0,88405.0,0.0002]
[1767158313354,0.0113108,88411.0,88405.0,0.0002]
[1767158313713,0.01131093,88410.0,88405.0,0.0002]
[1767158313958,0.0113108,88411.0,88405.0,0.0002]
[1767158314143,0.01131093,88410.0,88405.0,0.0002]
[1767158314358,0.0113108,88411.0,88405.0,0.00015782]
[1767158314523,0.01131093,88410.0,88405.0,0.00015782]
[1767158315107,0.0113108,88411.0,88405.0,0.00015782]
[1767158315419,0.0113108,88411.0,88405.0,0.00011572]
[1767158315642,0.01131093,88410.0,88405.0,0.00011572]
[1767158316048,0.01131106,88409.0,88405.0,0.00011572]
[1767158316267,0.14897093,88410.0,88405.0,0.00011572]
[1767158316694,0.01131093,88410.0,88405.0,0.00011572]
[1767158317089,0.01131106,88409.0,88405.0,0.00011572]
[1767158317297,0.01131093,88410.0,88405.0,0.00011572]
[1767158318002,0.01131093,88410.0,88405.0,7.221e-05]
[1767158319127,0.06786529,88411.0,88405.0,7.221e-05]
[1767158319128,0.0113108,88411.0,88405.0,7.221e-05]
[1767158319272,0.06786457,88412.0,88405.0,7.221e-05]
[1767158319472,0.0113108,88411.0,88405.0,7.221e-05]
[1767158320084,0.01131106,88409.0,88405.0,7.221e-05]
[1767158320287,0.01131093,88410.0,88405.0,7.221e-05]
[1767158322243,0.0113108,88411.0,88405.0,7.221e-05]
[1767158322628,0.01131093,88410.0,88405.0,7.221e-05]
[1767158323020,0.01131106,88409.0,88405.0,7.221e-05]
[1767158323229,0.01131093,88410.0,88405.0,7.221e-05]
[1767158323429,0.01131106,88409.0,88405.0,7.221e-05]
[1767158323613,0.01131093,88410.0,88405.0,7.221e-05]
[1767158324089,0.01131119,88408.0,88405.0,7.221e-05]
[1767158324708,0.01131093,88410.0,88405.0,7.221e-05]
[1767158324860,0.01131106,88409.0,88405.0,7.221e-05]
[1767158325063,0.01131119,88408.0,88405.0,7.221e-05]
[1767158325284,0.14897119,88408.0,88405.0,7.221e-05]
[1767158325697,0.01131119,88408.0,88405.0,7.221e-05]
[1767158325891,0.01131119,88408.0,88389.0,0.03875381]
[1767158325892,0.1489717,88404.0,88389.0,0.0003125]
[1767158326092,0.1489717,88404.0,88392.0,0.01132]
[1767158327324,0.01131183,88403.0,88392.0,0.01132]
[1767158327709,0.1489717,88404.0,88392.0,0.01132]
[1767158328312,0.01131183,88403.0,88392.0,0.01132]
[1767158328525,0.15488234,88399.0,88389.0,0.0003125]
[1767158328774,0.01131208,88401.0,88396.0,2.5e-06]
[1767158328986,0.01131234,88399.0,88396.0,2.5e-06]
[1767158329367,0.01131221,88400.0,88396.0,2.5e-06]
[1767158329614,0.02263208,88401.0,88396.0,2.5e-06]
[1767158329956,0.0113117,88404.0,88401.0,0.00055]
[1767158330338,0.01132,88403.0,88396.0,2.5e-06]
[1767158331014,0.01132,88407.0,88403.0,0.00055]
[1767158331422,0.02263093,88410.0,88397.0,0.14615]
[1767158331795,0.01131106,88409.0,88397.0,0.14615]
[1767158332209,0.43809736,88410.0,88397.0,0.14615]
[1767158332606,0.41546643,88407.0,88394.0,0.01132]
[1767158332774,0.41546643,88404.0,88394.0,0.01132]
[1767158337118,0.14357,88406.0,88394.0,0.01132]
[1767158337322,0.01132,88407.0,88404.0,0.00055]
[1767158337527,0.01132,88407.0,88394.0,0.15747]
[1767158338597,0.41546643,88404.0,88394.0,0.15747]
[1767158340629,0.01131183,88403.0,88394.0,0.01132]
[1767158340822,0.01131196,88402.0,88394.0,0.01132]
[1767158341946,0.01131208,88401.0,88394.0,0.01132]
[1767158342192,0.01131196,88402.0,88394.0,0.01132]
[1767158342610,0.0678718,88402.0,88394.0,0.01132]
[1767158342742,0.01131196,88402.0,88394.0,0.01132]
[1767158343590,0.01131183,88403.0,88394.0,0.01132]
[1767158343798,0.01131196,88402.0,88394.0,0.01132]
[1767158344991,0.01131208,88401.0,88394.0,0.01132]
[1767158345192,0.01131196,88402.0,88394.0,0.01132]
[1767158345833,0.06787759,88406.0,88394.0,0.01132]
[1767158346041,0.00011,88413.0,88395.0,0.14922285]
[1767158346383,0.41546643,88410.0,88398.0,0.13791]
[1767158348175,0.41546643,88408.0,88398.0,0.13791]
[1767158348350,0.41546643,88410.0,88398.0,0.13791]
[1767158350960,0.000549,88398.0,88394.0,0.01132]
[1767158351162,0.55940643,88404.0,88394.0,0.01132]
[1767158351536,0.55940643,88404.0,88394.0,0.01127661]
[1767158351766,0.41546643,88404.0,88394.0,0.01127661]
[1767158352379,0.41546643,88404.0,88394.0,0.01123477]
[1767158353203,0.41546643,88404.0,88394.0,0.01119173]
[1767158353822,0.01131144,88406.0,88394.0,0.01119173]
[1767158353999,0.41546643,88404.0,88394.0,0.01119173]
[1767158372200,0.14394,88409.0,88394.0,0.01119173]
[1767158372383,0.14394,88409.0,88394.0,0.15801173]
[1767158372591,0.15525106,88409.0,88394.0,0.15801173]
[1767158372809,0.14394,88409.0,88394.0,0.15801173]
[1767158373943,0.14394,88409.0,88394.0,0.16932471]
[1767158374705,0.14394,88409.0,88394.0,0.15801173]
[1767158377965,0.41546643,88410.0,88394.0,0.15801173]
[1767158378488,0.42677736,88410.0,88394.0,0.15801173]
[1767158378839,0.01131119,88408.0,88394.0,0.15801173]
[1767158380198,0.01131132,88407.0,88394.0,0.15801173]
[1767158380702,0.01131119,88408.0,88394.0,0.15801173]
[1767158382884,0.01131144,88406.0,88394.0,0.15801173]
[1767158383082,0.15966119,88408.0,88394.0,0.15801173]
[1767158383279,0.01131132,88407.0,88394.0,0.15801173]
[1767158384613,0.01131144,88406.0,88394.0,0.15801173]
[1767158384772,0.01131132,88407.0,88394.0,0.01119173]
[1767158384989,0.14835,88403.0,88394.0,0.01064273]
[1767158390135,0.14397,88407.0,88403.0,0.000549]
[1767158390353,0.14397,88407.0,88394.0,0.01064273]
[1767158395472,0.01132,88409.0,88407.0,0.001099]
[1767158395887,0.0113108,88411.0,88395.0,0.14574]
[1767158396311,0.01131068,88412.0,88395.0,0.14574]
[1767158396963,0.06786448,88412.0,88395.0,0.14574]
[1767158397159,0.01131093,88410.0,88395.0,0.14574]
[1767158397696,0.01131106,88409.0,88395.0,0.14574]
[1767158398653,0.01131119,88408.0,88395.0,0.14574]
[1767158398871,0.01131132,88407.0,88395.0,0.14569872]
[1767158399309,0.01131106,88409.0,88395.0,0.14569872]
[1767158399492,0.01131119,88408.0,88395.0,0.14569872]
[1767158400996,0.14397,88409.0,88395.0,0.14569872]
[1767158402129,0.15528106,88409.0,88395.0,0.14569872]
[1767158402700,0.15662119,88408.0,88394.0,0.01064273]
[1767158402904,0.14531,88408.0,88394.0,0.01064273]
[1767158403838,0.14531,88408.0,88394.0,0.15551273]
[1767158404234,0.0113108,88411.0,88394.0,0.15551273]
[1767158404373,0.01131093,88410.0,88394.0,0.15551273]
[1767158406259,0.0113108,88411.0,88394.0,0.15551273]
[1767158406544,0.01131093,88410.0,88394.0,0.15551273]
[1767158411223,0.15662093,88410.0,88394.0,0.15551273]
[1767158411367,0.01131106,88409.0,88394.0,0.15551273]
[1767158412126,0.15662106,88409.0,88394.0,0.15551273]
[1767158412826,0.14531,88409.0,88394.0,0.15551273]
[1767158413963,0.15662106,88409.0,88394.0,0.15551273]
[1767158414748,0.14531,88409.0,88394.0,0.15551273]
[1767158416174,0.14531,88409.0,88394.0,0.01064273]
[1767158416376,0.14531,88407.0,88394.0,0.01064273]
[1767158424172,0.14597,88407.0,88394.0,0.01064273]
[1767158424372,0.01131119,88408.0,88394.0,0.01064273]
[1767158424373,0.14597,88403.0,88394.0,0.01064273]
[1767158427441,0.14597,88409.0,88394.0,0.01064273]
[1767158427578,0.15728106,88409.0,88403.0,0.000549]
[1767158427779,0.14597,88409.0,88403.0,0.000549]
[1767158428003,0.14597,88409.0,88394.0,0.01064273]
[1767158429113,0.15728106,88409.0,88394.0,0.01064273]
[1767158430187,0.14597,88409.0,88394.0,0.01064273]
[1767158430390,0.41552778,88420.0,88410.0,0.14014]
[1767158430391,0.00011,88413.0,88410.0,0.14014]
[1767158430600,0.0001125,88420.0,88413.0,0.01131055]
[1767158430959,0.0001125,88420.0,88416.0,0.01131017]
[1767158431170,0.0001125,88420.0,88416.0,0.15145017]
[1767158431482,0.14436243,88429.0,88416.0,0.14014]
[1767158431681,0.14446886,88429.0,88416.0,0.14014]
[1767158433270,0.14446886,88429.0,88417.0,0.01132]
[1767158437434,0.15577736,88429.0,88417.0,0.01132]
[1767158441150,0.01130863,88428.0,88417.0,0.01132]
[1767158442277,0.00010643,88429.0,88428.0,0.000437]
[1767158442828,0.00010643,88429.0,88420.0,0.01130965]
[1767158443068,0.00010643,88429.0,88421.0,0.01130953]
[1767158443432,4.3e-07,88429.0,88419.0,0.01130978]
[1767158443639,4.3e-07,88429.0,88418.0,0.15144991]
[1767158444042,4.3e-07,88429.0,88418.0,0.14014]
[1767158444266,4.3e-07,88429.0,88418.0,0.15144991]
[1767158445821,4.3e-07,88429.0,88418.0,0.14014]
[1767158448571,4.3e-07,88429.0,88419.0,0.41507885]
[1767158448930,4.3e-07,88429.0,88418.0,0.14014]
[1767158451798,4.3e-07,88429.0,88419.0,0.41507885]
[1767158456990,0.00010043,88430.0,88419.0,0.41507885]
[1767158457225,0.00018472,88430.0,88419.0,0.41507885]
[1767158460014,0.00018472,88430.0,88418.0,0.14014]
[1767158460220,0.00018472,88430.0,88420.0,0.41507885]
[1767158460639,0.00018472,88430.0,88418.0,0.14014]
[1767158463480,0.00018472,88430.0,88420.0,0.41507885]
[1767158468235,0.00018472,88430.0,88418.0,0.14014]
[1767158468363,0.00018472,88430.0,88420.0,0.41507885]
[1767158468708,0.15700309,88430.0,88417.0,0.01132]
[1767158469295,0.14569472,88430.0,88417.0,0.01132]
[1767158469701,0.56077357,88430.0,88417.0,0.01132]
[1767158470115,0.14569472,88430.0,88417.0,0.01132]
[1767158470323,0.57208194,88430.0,88417.0,0.01132]
[1767158471966,0.56077357,88430.0,88417.0,0.01132]
[1767158472168,0.14551,88429.0,88417.0,0.01132]
[1767158474592,0.1443791,88429.0,88417.0,0.01132]
[1767158478719,0.00018472,88430.0,88429.0,0.000331]
[1767158478864,0.13777472,88430.0,88429.0,0.000331]
[1767158479064,0.13777472,88430.0,88419.0,0.41507885]
[1767158480878,0.13777472,88430.0,88417.0,0.01132]
[1767158483630,0.0001125,88433.0,88430.0,0.00014628]
[1767158483843,0.00017672,88433.0,88430.0,0.00014628]
[1767158484196,0.00017672,88433.0,88428.0,0.01132]
[1767158486460,0.13776672,88433.0,88428.0,0.01132]
[1767158486656,0.00017672,88433.0,88428.0,0.01132]
[1767158488820,0.42649845,88440.0,88429.0,0.14073]
[1767158489308,0.01130722,88439.0,88429.0,0.14073]
[1767158489540,0.42649845,88440.0,88429.0,0.14073]
[1767158490150,0.01130722,88439.0,88429.0,0.14073]
[1767158490642,0.42649845,88440.0,88429.0,0.14073]
[1767158492253,0.13759,88438.0,88428.0,0.01132]
[1767158504102,0.14889748,88437.0,88428.0,0.01132]
[1767158504291,0.13759,88437.0,88428.0,0.01132]
[1767158505037,0.14889748,88437.0,88428.0,0.01132]
[1767158505236,0.13759,88437.0,88428.0,0.01132]
[1767158516581,0.137444,88437.0,88428.0,0.01132]
[1767158518006,0.0001125,88440.0,88428.0,0.01132]
[1767158520235,0.1386125,88440.0,88428.0,0.01132]
[1767158522472,0.0001125,88440.0,88433.0,0.01130799]
[1767158522679,0.1385,88446.0,88431.0,0.14661]
[1767158522680,0.135628,88446.0,88440.0,0.0004375]
[1767158522903,0.135628,88446.0,88437.0,0.01132]
[1767158523593,0.0001125,88447.0,88437.0,0.01132]
[1767158523797,0.0001125,88447.0,88438.0,0.01130735]
[1767158524021,0.0001125,88447.0,88437.0,0.01132]
[1767158524996,5e-07,88447.0,88437.0,0.15671]
[1767158530452,0.14566,88436.0,88419.0,0.01130978]
[1767158530621,0.14566,88436.0,88425.0,0.01132]
[1767158531818,0.14566,88436.0,88425.0,0.02262901]
[1767158532486,0.14566,88436.0,88425.0,0.01132]
[1767158532934,0.41502256,88440.0,88425.0,0.01132]
[1767158533239,0.41502256,88440.0,88426.0,0.14539]
[1767158533381,0.42632966,88440.0,88426.0,0.14539]
[1767158533583,0.01130722,88439.0,88426.0,0.14539]
[1767158533803,0.42632966,88440.0,88426.0,0.14539]
[1767158534032,0.01130722,88439.0,88426.0,0.145502]
[1767158535384,0.01130735,88438.0,88426.0,0.145502]
[1767158536036,0.01130748,88437.0,88426.0,0.145502]
[1767158536247,0.01130761,88436.0,88426.0,0.145279]
[1767158536457,0.01130748,88437.0,88426.0,0.145279]
[1767158537644,0.01130761,88436.0,88426.0,0.145279]
[1767158537848,0.01130748,88437.0,88426.0,0.000112]
[1767158538171,0.01130761,88436.0,88426.0,0.000112]
[1767158538315,0.14543,88435.0,88426.0,0.000112]
[1767158538536,0.14543,88435.0,88426.0,2e-06]
[1767158546205,0.01130748,88437.0,88426.0,2e-06]
[1767158546381,0.01130735,88438.0,88426.0,2e-06]
[1767158546563,0.01130722,88439.0,88426.0,0.149492]
[1767158547707,0.01130735,88438.0,88426.0,0.149492]
[1767158548910,0.01130722,88439.0,88426.0,0.149492]
[1767158550231,0.14543,88438.0,88426.0,2e-06]
[1767158550635,0.15673735,88438.0,88426.0,2e-06]
[1767158551178,0.14543,88438.0,88426.0,2e-06]
[1767158560904,0.14543,88438.0,88427.0,0.02712769]
[1767158570887,0.14543,88438.0,88425.0,0.01132]
[1767158572565,0.14543,88438.0,88427.0,0.01130876]
[1767158572779,0.0001105,88447.0,88438.0,0.000549]
[1767158572930,0.0001105,88447.0,88439.0,0.01132]
[1767158573340,0.0001105,88447.0,88439.0,0.02262722]
[1767158573526,5e-07,88447.0,88439.0,0.01132]
[1767158582393,5e-07,88447.0,88443.0,0.01130671]
[1767158582819,5e-07,88447.0,88442.0,0.01130684]
[1767158583117,5e-07,88447.0,88440.0,0.0678421]
[1767158583293,5e-07,88447.0,88441.0,0.01130697]
[1767158584456,5e-07,88447.0,88440.0,0.0113071]
[1767158585451,5e-07,88447.0,88441.0,0.01130697]
[1767158588109,5e-07,88447.0,88440.0,0.0113071]
[1767158588292,5e-07,88447.0,88441.0,0.01130697]
[1767158589144,5e-07,88447.0,88440.0,0.0113071]
[1767158589296,5e-07,88447.0,88441.0,0.01130697]
[1767158591869,5e-07,88447.0,88442.0,0.01130684]
[1767158593417,1.0,88450.0,88445.0,0.0565323]
[1767158593418,0.98850536,88450.0,88445.0,0.0565323]
[1767158593621,0.81329636,88450.0,88447.0,0.0360762]
[1767158594079,0.81329636,88450.0,88447.0,0.0113062]
[1767158594461,0.81329636,88450.0,88446.0,0.01132]
[1767158594462,0.81329636,88450.0,88446.0,0.02262633]
[1767158595419,0.81329636,88450.0,88446.0,0.01132]
[1767158595612,0.81329636,88450.0,88446.0,0.010771]
[1767158601165,0.94880636,88450.0,88446.0,0.010771]
[1767158601668,0.13551,88449.0,88446.0,0.010771]
[1767158605373,0.13551,88449.0,88440.0,0.03843479]
[1767158605531,0.13551,88449.0,88441.0,0.01132]
[1767158605731,0.13551,88449.0,88441.0,0.02262697]
[1767158605968,0.13551,88449.0,88442.0,0.01130684]
[1767158606581,0.13551,88449.0,88443.0,0.01132]
[1767158606732,0.13551,88449.0,88444.0,0.01132]
[1767158606932,0.13551,88449.0,88440.0,0.02712769]
[1767158607132,0.13551,88449.0,88445.0,0.01132]
[1767158622663,0.134961,88449.0,88445.0,0.01132]
[1767158622864,0.13491841,88449.0,88445.0,0.01132]
[1767158626304,0.13491841,88449.0,88445.0,0.010771]
[1767158627566,0.81329636,88450.0,88445.0,0.010771]
[1767158627766,0.81274736,88450.0,88445.0,0.010771]
[1767158630855,0.95229736,88450.0,88445.0,0.010771]
[1767158631041,0.81274736,88450.0,88445.0,0.010771]
[1767158631241,0.13955,88449.0,88445.0,0.010771]
[1767158636005,0.81274736,88450.0,88445.0,0.010771]
[1767158639543,0.95229736,88450.0,88445.0,0.010771]
[1767158645392,0.13955,88449.0,88440.0,0.05929613]
[1767158645561,0.13955,88449.0,88430.0,0.11328228]
[1767158645562,0.13955,88439.0,88434.0,0.01132]
[1767158647183,0.13955,88439.0,88434.0,0.010771]
[1767158649158,0.13955,88439.0,88430.0,0.0001125]
[1767158649355,0.13955,88439.0,88430.0,2.5e-06]
[1767158650760,0.01132,88445.0,88439.0,0.000549]
[1767158650981,0.01132,88445.0,88431.0,0.01130825]
[1767158651346,0.14512,88449.0,88433.0,0.07884]
[1767158651966,0.14512,88449.0,88433.0,0.09014799]
[1767158652165,0.14512,88449.0,88433.0,0.07884]
[1767158652603,0.15642595,88449.0,88433.0,0.07884]
[1767158652770,0.15642607,88448.0,88433.0,0.07884]
[1767158653171,0.14512,88448.0,88432.0,0.01130812]
[1767158653612,0.14512,88448.0,88430.0,0.01131087]
[1767158653809,0.15642607,88448.0,88431.0,0.01130825]
[1767158655226,0.14512,88448.0,88431.0,0.01130825]
[1767158655794,0.15638347,88448.0,88431.0,0.01130825]
[1767158655990,0.1450774,88448.0,88431.0,0.01130825]
[1767158657457,0.13888,88447.0,88430.0,0.01131087]
[1767158658245,0.13888,88447.0,88431.0,0.01130825]
[1767158658560,0.13888,88447.0,88432.0,0.01130812]
[1767158658721,0.13888,88447.0,88431.0,0.01130825]
[1767158661070,0.13888,88447.0,88432.0,0.01130812]
[1767158661472,0.13888,88447.0,88431.0,0.01130825]
[1767158661678,0.13888,88447.0,88432.0,0.01130812]
[1767158661884,0.13888,88447.0,88431.0,0.01130825]
[1767158662636,0.13888,88447.0,88432.0,0.01130812]
[1767158663081,0.13888,88447.0,88431.0,0.01130825]
[1767158664320,0.13888,88447.0,88430.0,0.01131087]
[1767158664520,0.13888,88447.0,88431.0,0.01130825]
[1767158666260,0.13888,88447.0,88430.0,0.01131087]
[1767158667766,0.13888,88447.0,88431.0,0.01130825]
[1767158668316,0.13888,88447.0,88432.0,0.01130812]
[1767158668461,0.13888,88447.0,88433.0,0.01130799]
[1767158668665,0.13888,88447.0,88434.0,0.01130786]
[1767158669079,0.13888,88447.0,88432.0,0.01130812]
[1767158670110,0.13888,88447.0,88431.0,0.01130825]
[1767158670315,0.13888,88447.0,88432.0,0.01130812]
[1767158671704,0.13888,88447.0,88431.0,0.01130825]
[1767158672938,0.13888,88447.0,88432.0,0.01130812]
[1767158673519,0.13888,88447.0,88431.0,0.01130825]
[1767158674354,0.13888,88447.0,88430.0,0.06785242]
[1767158674714,0.1501862,88447.0,88430.0,2.5e-06]
[1767158674921,0.1501862,88447.0,88430.0,0.01131087]
[1767158675308,0.41485874,88440.0,88430.0,0.01131087]
[1767158676392,0.13888,88447.0,88431.0,0.01130825]
[1767158676594,0.13888,88447.0,88430.0,0.01131087]
[1767158677001,0.13888,88447.0,88431.0,0.01130825]
[1767158678329,0.13888,88447.0,88430.0,0.01131087]
[1767158678790,0.13888,88447.0,88431.0,0.01130825]
[1767158679001,0.13888,88447.0,88430.0,0.01131087]
[1767158679345,0.13888,88447.0,88431.0,0.01130825]
[1767158679533,0.13888,88447.0,88430.0,0.01131087]
[1767158679743,0.13888,88447.0,88431.0,0.01130825]
[1767158679880,0.13888,88447.0,88432.0,0.01130812]
[1767158680077,0.13888,88447.0,88433.0,0.01130799]
[1767158680711,0.13888,88447.0,88431.0,0.01130825]
[1767158682719,0.13888,88447.0,88432.0,0.01130812]
[1767158683057,0.13888,88447.0,88431.0,0.01130825]
[1767158683261,0.13888,88447.0,88432.0,0.01130812]
[1767158683414,0.13888,88447.0,88431.0,0.01130825]
[1767158683600,0.13888,88447.0,88432.0,0.01130812]
[1767158684600,0.81274736,88450.0,88433.0,0.01130799]
[1767158684799,1.2270571,88450.0,88437.0,0.09019748]
[1767158685005,1.2270571,88450.0,88438.0,0.02262735]
[1767158685205,0.81219836,88450.0,88438.0,0.02262735]
[1767158685424,1.2270571,88450.0,88438.0,0.02262735]
[1767158685651,1.2271671,88450.0,88438.0,0.02262735]
[1767158685995,1.2271671,88450.0,88440.0,0.0113071]
[1767158686125,0.81230836,88450.0,88442.0,0.07889]
[1767158686324,0.81230836,88450.0,88441.0,0.03843466]
[1767158687382,0.81230836,88450.0,88442.0,0.01130684]
[1767158687607,0.8021617,88450.0,88446.0,0.01130633]
[1767158687813,0.14261224,88450.0,88448.0,0.05652999]
[1767158687980,1e-08,88453.0,88452.0,0.05652783]
[1767158688179,0.142807,88467.0,88452.0,0.02262556]
[1767158688385,0.142807,88467.0,88456.0,0.02712769]
[1767158689182,0.14316199,88467.0,88456.0,0.02712769]
[1767158692595,0.41478411,88466.0,88456.0,0.02712769]
[1767158693048,0.55983411,88466.0,88456.0,0.02712769]
[1767158694562,0.55979152,88466.0,88456.0,0.02712769]
[1767158697352,0.14505,88466.0,88456.0,0.02712769]
[1767158698556,0.14505,88466.0,88458.0,0.0113048]
[1767158698986,0.14505,88466.0,88457.0,0.01130492]
[1767158699285,0.14505,88466.0,88456.0,0.03843274]
[1767158700323,0.14505,88466.0,88457.0,0.01130492]
[1767158700501,0.14505,88466.0,88456.0,0.03843274]
[1767158702183,0.14505,88466.0,88456.0,0.02712769]
[1767158702384,0.14505,88466.0,88456.0,0.03843274]
[1767158702699,0.14505,88466.0,88456.0,0.02712769]
[1767158703394,0.14505,88466.0,88456.0,0.03843274]
[1767158706904,0.00035499,88467.0,88457.0,0.01130492]
[1767158707323,9.9e-07,88467.0,88464.0,0.01130403]
[1767158707563,9.9e-07,88467.0,88463.0,0.06782452]
[1767158707736,9.9e-07,88467.0,88464.0,0.01130403]
[1767158708197,9.9e-07,88467.0,88463.0,0.01130416]
[1767158708560,9.9e-07,88467.0,88464.0,0.01130403]
[1767158710383,0.0001125,88474.0,88467.0,0.01130364]
[1767158710600,0.0001125,88474.0,88472.0,0.05651454]
[1767158710601,7.4e-07,88474.0,88472.0,0.05651454]
[1767158710775,7.4e-07,88474.0,88473.0,0.01348]
[1767158710981,7.4e-07,88474.0,88473.0,0.01258042]
[1767158715170,7.4e-07,88474.0,88473.0,0.01132]
[1767158715514,7.4e-07,88474.0,88473.0,0.010855]
[1767158717735,7.4e-07,88474.0,88470.0,0.02712769]
[1767158717917,7.4e-07,88474.0,88473.0,0.01132]
[1767158734686,7.063e-05,88481.0,88474.0,0.01130275]
[1767158735228,7.063e-05,88481.0,88475.0,0.01130262]
[1767158735879,7.063e-05,88481.0,88474.0,0.01130275]
[1767158736430,7.063e-05,88481.0,88475.0,0.01130262]
[1767158736836,7.063e-05,88481.0,88474.0,0.01130275]
[1767158737021,7.063e-05,88481.0,88475.0,0.01130262]
[1767158737461,0.11524,88483.0,88475.0,0.01130262]
[1767158737623,0.06964,88483.0,88475.0,0.01130262]
[1767158737819,0.06864106,88483.0,88474.0,0.01130275]
[1767158738024,0.00055,88474.0,88473.0,0.01132]
[1767158738279,0.0002865,88474.0,88473.0,0.01132]
[1767158738671,0.06864106,88483.0,88473.0,0.02262288]
[1767158739305,0.06864106,88483.0,88473.0,0.01132]
[1767158740091,0.06864106,88483.0,88473.0,0.011033]
[1767158741377,0.06864106,88483.0,88473.0,0.02233588]
[1767158741577,0.06864106,88483.0,88473.0,0.011033]
[1767158741899,0.06864106,88483.0,88473.0,0.02233588]
[1767158742899,0.06864106,88483.0,88473.0,0.011033]
[1767158744349,0.14613,88482.0,88473.0,0.011033]
[1767158748354,0.14613,88482.0,88473.0,0.02233588]
[1767158748551,0.14613,88482.0,88473.0,0.011033]
[1767158748860,0.14613,88482.0,88474.0,0.01130275]
[1767158749062,0.14613,88482.0,88473.0,0.011033]
[1767158749226,0.14613,88482.0,88473.0,0.02233588]
[1767158749742,0.0001125,88487.0,88475.0,0.01130262]
[1767158749911,0.1435725,88487.0,88473.0,0.07884992]
[1767158750112,0.1435725,88487.0,88474.0,0.01130275]
[1767158753322,0.1435725,88487.0,88475.0,0.01130262]
[1767158755957,0.1435725,88487.0,88473.0,0.07884992]
[1767158756164,0.1435725,88487.0,88474.0,0.01130275]
[1767158756559,0.1435725,88487.0,88473.0,0.07884992]
[1767158756901,0.1435725,88487.0,88474.0,0.01130275]
[1767158757328,0.1435725,88487.0,88475.0,0.01130262]
[1767158757449,0.0001125,88487.0,88475.0,0.08821262]
[1767158758087,0.0001125,88487.0,88475.0,0.01130262]
[1767158758289,0.1435725,88487.0,88474.0,0.06781591]
[1767158758486,0.0001125,88487.0,88477.0,0.01130237]
[1767158758704,0.0001125,88487.0,88476.0,0.0113025]
[1767158759656,0.0001125,88487.0,88478.0,0.01130224]
[1767158760097,0.0001125,88487.0,88479.0,0.01130211]
[1767158760296,0.0001125,88487.0,88480.0,0.01132]
[1767158761943,0.1435725,88487.0,88480.0,0.01132]
[1767158763333,0.1435725,88487.0,88481.0,1e-06]
[1767158777223,0.01130122,88486.0,88470.0,0.03844769]
[1767158777426,0.14699,88479.0,88471.0,0.01132]
[1767158777667,0.14699,88479.0,88472.0,0.01132]
[1767158778067,0.146441,88479.0,88472.0,0.01132]
[1767158785446,0.1471025,88487.0,88472.0,0.01132]
[1767158786913,0.1471025,88487.0,88472.0,0.02262301]
[1767158787120,0.1471025,88487.0,88472.0,0.01132]
[1767158787318,0.15840359,88487.0,88472.0,0.01132]
[1767158787743,0.1471025,88487.0,88472.0,0.01132]
[1767158788162,0.15840359,88487.0,88472.0,0.01132]
[1767158788543,0.1471025,88487.0,88472.0,0.01132]
[1767158792154,0.15829186,88481.0,88461.0,0.01130441]
[1767158792410,0.15831,88486.0,88481.0,0.00049388]
[1767158792997,0.15831,88486.0,88475.0,0.01130262]
[1767158793461,0.157817,88486.0,88476.0,0.0113025]
[1767158793661,0.157817,88486.0,88475.0,0.01130262]
[1767158794008,0.157817,88486.0,88476.0,0.0113025]
[1767158794360,0.146497,88486.0,88476.0,0.0226225]
[1767158794555,0.146497,88486.0,88476.0,0.01132]
[1767158799517,0.146497,88486.0,88476.0,0.0226225]
[1767158801056,0.146497,88486.0,88476.0,0.01132]
[1767158801257,0.146497,88486.0,88476.0,0.0226225]
[1767158801861,0.0001125,88487.0,88476.0,0.0226225]
[1767158802087,0.0001125,88487.0,88476.0,0.01132]
[1767158803121,0.14655217,88491.0,88476.0,0.1113425]
[1767158803726,0.14655217,88491.0,88476.0,0.10004]
[1767158803946,0.41453033,88490.0,88476.0,0.1113425]
[1767158804122,0.56152033,88490.0,88476.0,0.1113425]
[1767158806549,0.56152033,88490.0,88477.0,0.01130237]